bitfinex-derivatives/quotes_BTCF0:USTF0_20250703
["timestamp","ask_amount","ask_price","bid_price","bid_amount"]
[1751580762695,1.15186408,109800.0,109790.0,0.32101915]
[1751580762989,1.15186408,109800.0,109790.0,0.32401915]
[1751580763780,1.15186408,109800.0,109790.0,0.35481915]
[1751580764082,1.22449059,109800.0,109790.0,0.35481915]
[1751580764591,0.66887571,109800.0,109790.0,0.38921915]
[1751580764796,1.16089059,109800.0,109790.0,0.42021915]
[1751580765087,1.16089059,109800.0,109790.0,0.41921915]
[1751580765786,1.16089059,109800.0,109790.0,0.41721915]
[1751580769789,1.16089059,109800.0,109790.0,0.59932175]
[1751580769996,1.13772739,109800.0,109790.0,0.59932175]
[1751580770297,1.160923,109800.0,109790.0,0.59932175]
[1751580770589,1.160923,109800.0,109790.0,0.41721915]
[1751580771292,1.160923,109800.0,109790.0,0.59932175]
[1751580771486,1.160923,109800.0,109790.0,0.10721915]
[1751580771687,1.160923,109800.0,109790.0,0.22721915]
[1751580771886,1.13772739,109800.0,109790.0,0.22721915]
[1751580772692,1.13772739,109800.0,109790.0,0.40932175]
[1751580772893,1.1609326,109800.0,109790.0,0.40932175]
[1751580774490,1.40694004,109800.0,109790.0,0.12482158]
[1751580774792,2.29836004,109800.0,109790.0,0.00482158]
[1751580775999,2.29836004,109800.0,109790.0,1e-08]
[1751580776697,2.29836004,109800.0,109790.0,0.01358922]
[1751580779601,2.0523526,109800.0,109790.0,0.01358922]
[1751580780899,2.29836004,109800.0,109790.0,0.01358922]
[1751580783001,2.30741048,109800.0,109790.0,1e-08]
[1751580783408,2.29836004,109800.0,109790.0,1e-08]
[1751580787200,2.30762506,109800.0,109790.0,1e-08]
[1751580787608,2.29836004,109800.0,109790.0,1e-08]
[1751580788005,2.29836004,109800.0,109790.0,0.01363031]
[1751580789909,2.29836004,109800.0,109790.0,0.01363217]
[1751580791113,2.30763597,109800.0,109790.0,0.01363217]
[1751580792315,2.30763597,109800.0,109790.0,0.01363216]
[1751580792514,0.1821195,109780.0,109770.0,0.1047153]
[1751580792715,1.05813959,109780.0,109770.0,0.4047153]
[1751580792916,1.08933959,109780.0,109770.0,0.4047153]
[1751580793217,1.12103959,109780.0,109770.0,0.3422153]
[1751580793418,1.15363959,109780.0,109770.0,0.3422153]
[1751580793715,1.98331959,109780.0,109770.0,0.3422153]
[1751580794318,1.98331959,109780.0,109770.0,0.3432153]
[1751580795618,1.98331959,109780.0,109770.0,0.3442153]
[1751580796720,1.49130471,109780.0,109770.0,0.3442153]
[1751580796920,1.98331959,109780.0,109770.0,0.3442153]
[1751580797420,1.98331959,109780.0,109770.0,0.082]
[1751580798022,1.98331959,109780.0,109770.0,0.002]
[1751580798522,1.98331959,109780.0,109770.0,0.001]
[1751580798916,1.49130471,109780.0,109770.0,1e-07]
[1751580799121,2.59012703,109780.0,109770.0,1e-07]
[1751580799724,0.1821527,109760.0,109750.0,0.06552224]
[1751580799924,0.67416758,109760.0,109750.0,0.27552224]
[1751580800126,0.70466758,109760.0,109750.0,0.27552224]
[1751580800526,0.73506758,109760.0,109750.0,0.27552224]
[1751580800728,0.2430527,109760.0,109750.0,0.27552224]
[1751580800929,0.73506758,109760.0,109750.0,0.30712224]
[1751580801124,0.73506758,109760.0,109750.0,0.31012224]
[1751580801524,0.48906014,109760.0,109750.0,0.31012224]
[1751580801719,0.2430527,109760.0,109750.0,0.31012224]
[1751580801926,0.48964458,109760.0,109750.0,0.31903106]
[1751580803222,0.48964458,109760.0,109750.0,0.32103106]
[1751580803427,1.68296458,109760.0,109750.0,0.01682224]
[1751580803624,1.71506458,109760.0,109750.0,0.01682224]
[1751580803822,1.71506458,109760.0,109750.0,0.01482224]
[1751580804027,1.71506458,109760.0,109750.0,0.00582224]
[1751580804236,1.73864999,109760.0,109750.0,0.00582224]
[1751580804531,0.65953811,109760.0,109750.0,0.09991858]
[1751580804736,1.73928999,109760.0,109750.0,0.09991858]
[1751580805234,1.73928999,109760.0,109750.0,0.09891858]
[1751580806638,1.49269811,109760.0,109750.0,0.09891858]
[1751580806929,1.73928999,109760.0,109750.0,0.09691858]
[1751580807637,1.74028999,109760.0,109750.0,0.09591858]
[1751580808427,1.74028999,109760.0,109750.0,0.01591858]
[1751580810641,1.74028999,109760.0,109750.0,0.06591858]
[1751580811233,1.74028999,109760.0,109750.0,0.01591858]
[1751580811941,1.74028999,109760.0,109750.0,0.01571765]
[1751580812843,1.74028999,109760.0,109750.0,0.07571765]
[1751580813643,1.74028999,109760.0,109750.0,0.01571765]
[1751580814039,0.90712999,109760.0,109750.0,0.01571765]
[1751580814247,1.74068999,109760.0,109750.0,0.01571765]
[1751580814631,1.7414331,109760.0,109750.0,0.01571765]
[1751580815243,1.7414331,109760.0,109750.0,0.12571765]
[1751580815542,1.7414331,109760.0,109750.0,0.07571765]
[1751580817544,1.7414331,109760.0,109750.0,0.08995712]
[1751580818141,1.7414331,109760.0,109750.0,0.08996706]
[1751580819145,1.7414331,109760.0,109750.0,0.02996706]
[1751580819540,1.7414331,109760.0,109750.0,0.07996706]
[1751580820747,0.9078731,109760.0,109750.0,0.07996706]
[1751580820941,1.13336122,109760.0,109750.0,0.2999582]
[1751580821136,1.10126122,109760.0,109750.0,0.3325582]
[1751580821338,1.3478531,109760.0,109750.0,0.36435696]
[1751580822341,0.5149731,109760.0,109750.0,0.54652626]
[1751580822548,0.20748122,109760.0,109750.0,1.11311814]
[1751580822752,0.20748122,109760.0,109750.0,0.79311814]
[1751580823051,0.20748122,109760.0,109750.0,0.82521814]
[1751580823351,0.1831527,109760.0,109750.0,1.53601814]
[1751580823543,0.1831527,109760.0,109750.0,1.50601814]
[1751580823745,0.20750678,109760.0,109750.0,1.52601814]
[1751580823945,0.1831527,109760.0,109750.0,1.18601814]
[1751580824249,0.1831527,109760.0,109750.0,1.52601814]
[1751580824547,0.1831527,109760.0,109750.0,1.18601814]
[1751580824747,0.1831527,109760.0,109750.0,1.54601814]
[1751580824948,0.1831527,109760.0,109750.0,1.18601814]
[1751580825249,0.1831527,109760.0,109750.0,1.50601814]
[1751580826345,0.1831527,109760.0,109750.0,1.26942626]
[1751580826547,0.1831527,109760.0,109750.0,1.18601814]
[1751580826747,0.1831527,109760.0,109750.0,0.93942626]
[1751580829846,0.1831527,109760.0,109750.0,0.92552968]
[1751580830343,0.1831527,109760.0,109750.0,0.38256038]
[1751580830547,0.1831527,109760.0,109750.0,0.5783798]
[1751580831149,0.42974458,109760.0,109750.0,0.5783798]
[1751580834446,0.46124458,109760.0,109750.0,0.5783798]
[1751580835348,0.46124458,109760.0,109750.0,0.3323104]
[1751580835550,0.88544458,109760.0,109750.0,1.1640704]
[1751580835752,0.88544458,109760.0,109750.0,1.1314704]
[1751580836050,0.88544458,109760.0,109750.0,0.2997104]
[1751580838852,0.52464458,109760.0,109750.0,0.4818798]
[1751580839854,0.52464458,109760.0,109750.0,0.5122798]
[1751580840155,0.52464458,109760.0,109750.0,0.49862978]
[1751580840349,0.52464458,109760.0,109750.0,0.51220683]
[1751580840552,0.52464458,109760.0,109750.0,0.49862978]
[1751580840755,0.2780527,109760.0,109750.0,0.51220655]
[1751580844653,0.2780527,109760.0,109750.0,0.5121635]
[1751580844857,0.2780527,109760.0,109750.0,0.49858673]
[1751580845560,0.30228779,109760.0,109750.0,0.46818673]
[1751580845859,0.54887967,109760.0,109750.0,0.46818673]
[1751580850762,0.54887967,109760.0,109750.0,0.46818956]
[1751580852066,0.30228779,109760.0,109750.0,0.46818956]
[1751580852262,0.54887967,109760.0,109750.0,0.46818956]
[1751580853066,0.54887967,109760.0,109750.0,0.46819351]
[1751580853766,0.54885873,109760.0,109750.0,0.71476445]
[1751580853966,0.54885873,109760.0,109750.0,0.7147654]
[1751580855269,0.54885873,109760.0,109750.0,1.0647654]
[1751580856271,0.30228779,109760.0,109750.0,1.0647654]
[1751580856466,0.54885873,109760.0,109750.0,1.0647654]
[1751580856873,0.54885873,109760.0,109750.0,0.7147654]
[1751580857275,0.54885873,109760.0,109750.0,1.0447654]
[1751580857574,0.54885873,109760.0,109750.0,0.7147654]
[1751580858774,0.54885873,109760.0,109750.0,1.0247654]
[1751580859170,0.54885873,109760.0,109750.0,1.0647654]
[1751580859370,0.54885873,109760.0,109750.0,0.7147654]
[1751580860571,0.54885873,109760.0,109750.0,1.0447654]
[1751580862074,0.54885873,109760.0,109750.0,1.03056258]
[1751580862373,0.54885873,109760.0,109750.0,0.70056258]
[1751580863375,0.54885873,109760.0,109750.0,1.08056258]
[1751580863875,0.54885873,109760.0,109750.0,0.70056258]
[1751580865979,0.54885873,109760.0,109750.0,0.77325813]
[1751580867777,0.54876404,109760.0,109750.0,0.77325813]
[1751580868172,0.52462364,109760.0,109750.0,0.77325813]
[1751580868371,0.54876407,109760.0,109750.0,0.70056258]
[1751580871582,0.52462364,109760.0,109750.0,0.70056258]
[1751580872181,0.54876573,109760.0,109750.0,0.70056258]
[1751580872683,0.52462364,109760.0,109750.0,0.70056258]
[1751580873783,0.54876556,109760.0,109750.0,0.70056258]
[1751580875485,0.7953365,109760.0,109750.0,0.70056258]
[1751580877885,0.7953365,109760.0,109750.0,0.45399164]
[1751580878079,0.7953365,109760.0,109750.0,0.70056258]
[1751580879584,0.7953365,109760.0,109750.0,0.27182224]
[1751580879785,0.7953365,109760.0,109750.0,1.34851318]
[1751580879982,0.7953365,109760.0,109750.0,0.70056268]
[1751580880886,0.7953365,109760.0,109750.0,0.51839318]
[1751580881985,1.1561365,109760.0,109750.0,0.2854604]
[1751580882186,1.1561365,109760.0,109750.0,0.0254604]
[1751580882575,1.1561365,109760.0,109750.0,0.0154604]
[1751580885187,1.15611701,109760.0,109750.0,0.01561924]
[1751580885887,1.15611701,109760.0,109750.0,0.11561924]
[1751580886589,1.15611701,109760.0,109750.0,0.01561924]
[1751580886793,1.15611701,109760.0,109750.0,0.06561924]
[1751580887088,1.15611701,109760.0,109750.0,0.01561924]
[1751580887289,1.98623701,109760.0,109750.0,0.01561924]
[1751580887488,1.98623701,109760.0,109750.0,0.01562714]
[1751580888083,1.98623701,109760.0,109750.0,0.13562714]
[1751580888284,1.98623701,109760.0,109750.0,0.01562714]
[1751580889192,2.23280795,109760.0,109750.0,0.01562714]
[1751580889389,1.98623701,109760.0,109750.0,0.01562714]
[1751580892096,1.98623701,109760.0,109750.0,0.06562714]
[1751580892497,1.98623701,109760.0,109750.0,0.01562714]
[1751580892894,1.98623701,109760.0,109750.0,0.06562714]
[1751580893584,1.98623701,109760.0,109750.0,0.01562714]
[1751580894191,1.98623701,109760.0,109750.0,0.07562714]
[1751580894498,1.98623701,109760.0,109750.0,0.01562714]
[1751580894698,1.98623701,109760.0,109750.0,0.13562714]
[1751580894900,1.98623701,109760.0,109750.0,0.06562714]
[1751580895400,1.98623701,109760.0,109750.0,0.01562714]
[1751580895797,1.98623701,109760.0,109750.0,0.07562714]
[1751580897102,1.98623701,109760.0,109750.0,0.13562714]
[1751580899303,1.98623701,109760.0,109750.0,0.01562714]
[1751580899497,1.98623701,109760.0,109750.0,0.07562714]
[1751580900601,1.98619701,109760.0,109750.0,0.07562714]
[1751580901701,1.98619701,109760.0,109750.0,0.16562714]
[1751580901901,1.62539701,109760.0,109750.0,0.41219808]
[1751580902203,1.98619701,109760.0,109750.0,0.15182224]
[1751580905910,1.98619701,109760.0,109750.0,0.18392224]
[1751580908709,1.15611701,109760.0,109750.0,0.18392224]
[1751580908911,1.98615701,109760.0,109750.0,0.18392224]
[1751580910714,1.15611701,109760.0,109750.0,0.18392224]
[1751580911311,1.98611701,109760.0,109750.0,0.18392224]
[1751580913321,1.49297513,109760.0,109750.0,0.18392224]
[1751580913613,1.98611701,109760.0,109750.0,0.18392224]
[1751580916210,1.98611701,109760.0,109750.0,0.15182224]
[1751580921522,1.62531701,109760.0,109750.0,0.15182224]
[1751580921819,1.98611701,109760.0,109750.0,0.16545126]
[1751580923619,1.98612219,109760.0,109750.0,0.16545126]
[1751580925618,1.98612219,109760.0,109750.0,0.15182224]
[1751580930626,1.99511566,109760.0,109750.0,0.15182224]
[1751580931414,1.15612219,109760.0,109750.0,0.15182224]
[1751580937326,0.79532219,109760.0,109750.0,0.15182224]
[1751580937627,1.15612219,109760.0,109750.0,0.15182224]
[1751580942426,1.15612219,109760.0,109750.0,0.00182224]
[1751580943323,1.15612219,109760.0,109750.0,0.05182224]
[1751580944228,1.15612219,109760.0,109750.0,0.00182224]
[1751580949840,1.12542219,109760.0,109750.0,0.00182224]
[1751580950137,1.15732219,109760.0,109750.0,0.00182224]
[1751580950535,1.40389313,109760.0,109750.0,0.00182224]
[1751580950728,1.15732219,109760.0,109750.0,0.00182224]
[1751580951032,1.15732219,109760.0,109750.0,0.06182224]
[1751580951233,1.49386031,109760.0,109750.0,0.07182224]
[1751580951536,1.96287458,109760.0,109750.0,0.22182224]
[1751580951738,1.98703866,109760.0,109750.0,0.22182224]
[1751580952035,1.98703866,109760.0,109750.0,0.01182224]
[1751580952424,1.98703866,109760.0,109750.0,0.06182224]
[1751580953536,1.95513866,109760.0,109750.0,0.06182224]
[1751580953738,1.98653866,109760.0,109750.0,0.06182224]
[1751580957843,1.98653866,109760.0,109750.0,0.00182224]
[1751580958337,1.98653866,109760.0,109750.0,0.06182224]
[1751580964453,2.2331096,109760.0,109750.0,0.06182224]
[1751580965143,1.98653866,109760.0,109750.0,0.06182224]
[1751580965341,2.2331096,109760.0,109750.0,0.06182224]
[1751580966047,1.98653866,109760.0,109750.0,0.06182224]
[1751580971850,1.95513866,109760.0,109750.0,0.06182224]
[1751580972045,1.98653866,109760.0,109750.0,0.06182224]
[1751580975845,2.2331096,109760.0,109750.0,0.00182224]
[1751580976050,0.1821864,109740.0,109730.0,0.33213535]
[1751580976251,0.69949236,109740.0,109730.0,0.62213535]
[1751580977051,0.20624227,109740.0,109730.0,0.62213535]
[1751580977251,0.69938415,109740.0,109730.0,0.62413535]
[1751580977453,0.69938415,109740.0,109730.0,0.62713535]
[1751580977753,0.69938415,109740.0,109730.0,0.87370629]
[1751580978355,0.67532828,109740.0,109730.0,0.87370629]
[1751580978855,0.67532828,109740.0,109730.0,0.84350629]
[1751580979050,0.67532828,109740.0,109730.0,0.87540629]
[1751580979756,0.67532828,109740.0,109730.0,0.94830185]
[1751580985263,0.67532828,109740.0,109730.0,0.70173091]
[1751580988967,0.1821864,109740.0,109730.0,0.70173091]
[1751580989262,0.42875734,109740.0,109730.0,0.70173091]
[1751580989453,0.42875734,109740.0,109730.0,0.94830185]
[1751580991263,0.1821864,109740.0,109730.0,1.68910185]
[1751580991661,0.273273,109750.0,109740.0,0.1821865]
[1751580991967,0.54380477,109750.0,109740.0,1.80012838]
[1751580992161,0.25168853,109750.0,109740.0,1.80012838]
[1751580992364,0.3505884,109760.0,109750.0,0.1821699]
[1751580992569,0.59715934,109760.0,109750.0,0.79074084]
[1751580992769,0.59715934,109760.0,109750.0,0.82154084]
[1751580993172,0.84373028,109760.0,109750.0,0.5749699]
[1751580994264,0.84473028,109760.0,109750.0,0.362]
[1751580994470,0.90893028,109760.0,109750.0,0.5441699]
[1751580995765,0.90893028,109760.0,109750.0,0.4821699]
[1751580996670,0.90893028,109760.0,109750.0,0.3]
[1751580996869,1.26973028,109760.0,109750.0,0.3]
[1751580997164,0.1821699,109750.0,109730.0,0.85650135]
[1751580997364,0.67532838,109740.0,109730.0,2.40393445]
[1751580997565,0.46165744,109740.0,109730.0,2.40393445]
[1751580997963,0.46165744,109740.0,109730.0,1.28265445]
[1751580998163,0.77152838,109740.0,109730.0,1.86516351]
[1751580998363,0.52495744,109740.0,109730.0,2.11473445]
[1751580998564,0.52495744,109740.0,109730.0,2.11673445]
[1751580999362,0.52495744,109740.0,109730.0,2.13095809]
[1751581001870,0.52495744,109740.0,109730.0,2.1309738]
[1751581002965,0.52495744,109740.0,109730.0,2.1309338]
[1751581003271,0.52495744,109740.0,109730.0,2.1007338]
[1751581003571,0.52495744,109740.0,109730.0,1.7357173]
[1751581004662,0.52495744,109740.0,109730.0,1.98228824]
[1751581005270,0.52495744,109740.0,109730.0,2.0551838]
[1751581014679,0.52495744,109740.0,109730.0,1.6943838]
[1751581015176,0.77152838,109740.0,109730.0,1.44769286]
[1751581015376,0.77081327,109740.0,109730.0,1.44769286]
[1751581015576,0.77081327,109740.0,109730.0,1.3747973]
[1751581015779,0.77081327,109740.0,109730.0,1.37479749]
[1751581016381,0.77081327,109740.0,109730.0,1.37475749]
[1751581017270,1.13161327,109740.0,109730.0,1.14700569]
[1751581017476,1.13161327,109740.0,109730.0,1.32920879]
[1751581018581,1.13161327,109740.0,109730.0,1.31496925]
[1751581020180,1.20465774,109740.0,109730.0,1.31496925]
[1751581021073,0.1822031,109730.0,109720.0,0.38066346]
[1751581021278,0.88277404,109730.0,109720.0,0.54870035]
[1751581021473,0.88277404,109730.0,109720.0,0.47580479]
[1751581022685,0.88277404,109730.0,109720.0,0.48874604]
[1751581023381,0.88277404,109730.0,109720.0,0.30653254]
[1751581023686,0.88277404,109730.0,109720.0,0.32070359]
[1751581023888,0.88277404,109730.0,109720.0,0.3071123]
[1751581024085,0.88277404,109730.0,109720.0,0.3271123]
[1751581024481,1.15250755,109730.0,109720.0,0.04177097]
[1751581026688,1.15250755,109730.0,109720.0,0.04377097]
[1751581027499,1.15250755,109730.0,109720.0,0.03977097]
[1751581028301,1.15250755,109730.0,109720.0,0.03777097]
[1751581029491,1.15250755,109730.0,109720.0,0.02359992]
[1751581030901,1.15250755,109730.0,109720.0,0.02359935]
[1751581031704,0.90593661,109730.0,109720.0,0.02359935]
[1751581031905,1.15250755,109730.0,109720.0,0.02359935]
[1751581033405,0.90593661,109730.0,109720.0,0.02359935]
[1751581033606,1.73473661,109730.0,109720.0,0.02359935]
[1751581034299,1.71157404,109730.0,109720.0,0.02359935]
[1751581036605,1.95814498,109730.0,109720.0,0.02359935]
[1751581043213,1.59734498,109730.0,109720.0,0.02359935]
[1751581043414,1.95814498,109730.0,109720.0,0.02359935]
[1751581044116,1.98130113,109730.0,109720.0,0.02359935]
[1751581044717,1.48815925,109730.0,109720.0,0.02359935]
[1751581045016,1.98130113,109730.0,109720.0,0.02359935]
[1751581045615,1.98130113,109730.0,109720.0,0.02361333]
[1751581048017,1.98130113,109730.0,109720.0,0.20583313]
[1751581048418,1.98130113,109730.0,109720.0,0.38583313]
[1751581050718,1.98130113,109730.0,109720.0,0.20361333]
[1751581057924,1.62050113,109730.0,109720.0,0.2036388]
[1751581058125,1.98130113,109730.0,109720.0,0.2036388]
[1751581061928,1.98130113,109730.0,109720.0,0.20363894]
[1751581063020,1.98130113,109730.0,109720.0,0.19]
[1751581069931,1.62050113,109730.0,109720.0,0.19]
[1751581070133,1.98130113,109730.0,109720.0,0.19]
[1751581075323,1.48815925,109730.0,109720.0,0.19]
[1751581075529,1.48763925,109730.0,109720.0,0.3722199]
[1751581075729,1.73421019,109730.0,109720.0,0.4049199]
[1751581077435,0.90593019,109730.0,109720.0,0.4049199]
[1751581077635,0.90593019,109730.0,109720.0,0.3722199]
[1751581080338,0.90593019,109730.0,109720.0,0.19]
[1751581081636,1.15250113,109730.0,109720.0,0.19]
[1751581082241,0.90593019,109730.0,109720.0,0.19]
[1751581082742,1.15250113,109730.0,109720.0,0.19]
[1751581082941,0.90593019,109730.0,109720.0,0.19]
[1751581083338,1.15250113,109730.0,109720.0,0.19]
[1751581084938,0.79170113,109730.0,109720.0,0.19]
[1751581085144,1.15250113,109730.0,109720.0,0.19]
[1751581098559,0.79170113,109730.0,109720.0,0.19]
[1751581098761,1.15250113,109730.0,109720.0,0.19]
[1751581099361,0.90593019,109730.0,109720.0,0.3722199]
[1751581099864,0.51393019,109730.0,109720.0,0.97959084]
[1751581100057,0.45193019,109730.0,109720.0,1.43419084]
[1751581104264,0.42877404,109730.0,109720.0,1.43419084]
[1751581105960,0.20546782,109730.0,109720.0,1.68076178]
[1751581106165,0.1822031,109730.0,109720.0,2.50856178]
[1751581106467,0.42877404,109730.0,109720.0,2.58142971]
[1751581106661,0.42877404,109730.0,109720.0,2.33485877]
[1751581109971,0.1822031,109730.0,109720.0,2.33485877]
[1751581110271,0.42877404,109730.0,109720.0,2.33485877]
[1751581111272,0.59702034,109740.0,109730.0,0.1822036]
[1751581111471,0.01825492,109740.0,109730.0,1.85084188]
[1751581111767,0.1821556,109760.0,109750.0,0.1821704]
[1751581111967,0.1821556,109760.0,109750.0,2.31611701]
[1751581112161,0.6963722,109790.0,109760.0,0.0455384]
[1751581112361,0.42869154,109780.0,109770.0,0.66220464]
[1751581112570,0.67526248,109780.0,109770.0,2.15924348]
[1751581112763,0.42869154,109780.0,109770.0,1.80924348]
[1751581112960,0.67526248,109780.0,109770.0,1.56267254]
[1751581113164,0.67526248,109780.0,109770.0,0.59251824]
[1751581113469,0.73946248,109780.0,109770.0,0.59251824]
[1751581113870,0.49282981,109780.0,109770.0,0.59251824]
[1751581114070,0.49882981,109780.0,109770.0,0.59351824]
[1751581115273,0.50282981,109780.0,109770.0,0.59351824]
[1751581115667,0.43862981,109780.0,109770.0,0.59351824]
[1751581115874,0.1921206,109780.0,109770.0,1.26382745]
[1751581117663,0.1921206,109780.0,109770.0,1.01731824]
[1751581117867,0.43862981,109780.0,109770.0,1.01731824]
[1751581118373,0.46932981,109780.0,109770.0,1.01731824]
[1751581119473,0.50142981,109780.0,109770.0,1.01731824]
[1751581120575,0.50142981,109780.0,109770.0,0.98471824]
[1751581121674,0.50142981,109780.0,109770.0,0.95351824]
[1751581121876,0.50142981,109780.0,109770.0,0.86245604]
[1751581123074,0.86222981,109780.0,109770.0,0.4931374]
[1751581124379,0.86222981,109780.0,109770.0,0.5022462]
[1751581124578,0.86222981,109780.0,109770.0,0.4931374]
[1751581128082,0.86222981,109780.0,109770.0,0.311]
[1751581128380,0.86222981,109780.0,109770.0,0.001]
[1751581128980,1.10873902,109780.0,109770.0,0.001]
[1751581129182,0.86222981,109780.0,109770.0,0.001]
[1751581130183,0.86222981,109780.0,109770.0,0.061]
[1751581130583,0.86222981,109780.0,109770.0,0.001]
[1751581131683,0.182154,109760.0,109750.0,1.35010237]
[1751581131984,0.182154,109760.0,109750.0,0.79278237]
[1751581131985,0.78946321,109760.0,109750.0,0.79278237]
[1751581132179,0.85356321,109760.0,109750.0,0.79278237]
[1751581132578,0.85356321,109760.0,109750.0,0.56210237]
[1751581133084,0.85356321,109760.0,109750.0,0.47101877]
[1751581133285,0.85556321,109760.0,109750.0,0.23101877]
[1751581133686,0.85556321,109760.0,109750.0,0.53009527]
[1751581133882,0.85656321,109760.0,109750.0,0.53009527]
[1751581136287,0.85656321,109760.0,109750.0,0.24009527]
[1751581136687,0.85656321,109760.0,109750.0,0.52009527]
[1751581136986,0.85656321,109760.0,109750.0,0.5012396]
[1751581137887,0.85656321,109760.0,109750.0,0.1912396]
[1751581138086,0.85656321,109760.0,109750.0,0.2212396]
[1751581138286,0.85656321,109760.0,109750.0,0.4612396]
[1751581138484,0.85656321,109760.0,109750.0,0.2212396]
[1751581139688,0.85656321,109760.0,109750.0,0.4812396]
[1751581140388,0.85656321,109760.0,109750.0,0.2212396]
[1751581140587,0.85656321,109760.0,109750.0,0.4612396]
[1751581146494,0.85656321,109760.0,109750.0,0.2212396]
[1751581146903,0.85656321,109760.0,109750.0,0.4612396]
[1751581150301,0.85656321,109760.0,109750.0,0.2212396]
[1751581150595,0.85656321,109760.0,109750.0,0.4612396]
[1751581150800,0.85656321,109760.0,109750.0,0.2212396]
[1751581151999,0.85656321,109760.0,109750.0,0.1912396]
[1751581152203,0.85656321,109760.0,109750.0,0.2212396]
[1751581152503,0.85656321,109760.0,109750.0,0.4612396]
[1751581155411,0.85656321,109760.0,109750.0,0.2212396]
[1751581155707,0.85656321,109760.0,109750.0,0.5112396]
[1751581155909,0.85656321,109760.0,109750.0,0.2212396]
[1751581156104,0.85656321,109760.0,109750.0,0.5012396]
[1751581156305,0.85656321,109760.0,109750.0,0.2212396]
[1751581157110,0.8794179,109760.0,109750.0,0.2212396]
[1751581157409,0.85656321,109760.0,109750.0,0.2212396]
[1751581157910,1.103282,109760.0,109750.0,0.1912396]
[1751581158107,1.12614635,109760.0,109750.0,0.4512396]
[1751581164608,0.76534635,109760.0,109750.0,0.4512396]
[1751581164812,1.12614635,109760.0,109750.0,0.4512396]
[1751581166916,0.76534635,109760.0,109750.0,0.4512396]
[1751581167117,1.12614635,109760.0,109750.0,0.4512396]
[1751581167515,0.76534635,109760.0,109750.0,0.4512396]
[1751581167714,1.12614635,109760.0,109750.0,0.4512396]
[1751581170916,0.1821706,109750.0,109740.0,0.21223812]
[1751581171117,0.79625989,109750.0,109740.0,0.69442332]
[1751581171323,0.7733986,109750.0,109740.0,0.69442332]
[1751581172217,0.7743986,109750.0,109740.0,0.62155539]
[1751581172617,0.7743986,109750.0,109740.0,0.63066904]
[1751581173223,0.7733986,109750.0,109740.0,0.63066904]
[1751581173524,0.7763986,109750.0,109740.0,0.63066904]
[1751581173824,0.52984135,109750.0,109740.0,0.63066904]
[1751581174123,0.53084135,109750.0,109740.0,0.63066904]
[1751581178028,0.2841706,109750.0,109740.0,0.63066904]
[1751581178329,0.53084135,109750.0,109740.0,0.63066904]
[1751581184530,0.53084135,109750.0,109740.0,0.52066904]
[1751581184726,0.53084135,109750.0,109740.0,0.62066904]
[1751581188330,0.53084135,109750.0,109740.0,0.33848384]
[1751581188533,0.53084135,109750.0,109740.0,0.44848384]
[1751581188835,0.53084135,109750.0,109740.0,0.33848384]
[1751581189024,0.53084135,109750.0,109740.0,0.32937019]
[1751581189329,0.55368071,109750.0,109740.0,0.32937019]
[1751581189730,0.91448071,109750.0,109740.0,0.32937019]
[1751581191423,0.91448071,109750.0,109740.0,0.28937019]
[1751581193328,0.91448071,109750.0,109740.0,0.47155739]
[1751581193934,1.16115052,109750.0,109740.0,0.50155739]
[1751581194128,1.16115052,109750.0,109740.0,0.20155739]
[1751581194333,1.16115052,109750.0,109740.0,0.27155739]
[1751581194631,1.16115052,109750.0,109740.0,0.20155739]
[1751581194632,1.168968,109750.0,109740.0,0.20155739]
[1751581194840,1.168968,109750.0,109740.0,0.27155739]
[1751581195236,1.168968,109750.0,109740.0,0.48155739]
[1751581196829,0.92229772,109750.0,109740.0,0.48155739]
[1751581197325,0.92229772,109750.0,109740.0,0.51475739]
[1751581199938,0.56149772,109750.0,109740.0,0.51475739]
[1751581200126,0.92229772,109750.0,109740.0,0.51475739]
[1751581200325,0.67562744,109750.0,109740.0,0.51475739]
[1751581200531,0.92229772,109750.0,109740.0,0.51475739]
[1751581203533,0.67562744,109750.0,109740.0,0.51475739]
[1751581203739,0.92229772,109750.0,109740.0,0.51475739]
[1751581209241,1.168968,109750.0,109740.0,0.48155739]
[1751581209441,0.92229772,109750.0,109740.0,0.48155739]
[1751581212845,1.168968,109750.0,109740.0,0.48155739]
[1751581213346,0.92229772,109750.0,109740.0,0.48155739]
[1751581215447,1.168968,109750.0,109740.0,0.48155739]
[1751581220650,1.168968,109750.0,109740.0,0.09937019]
[1751581220847,1.168968,109750.0,109740.0,0.01937019]
[1751581221146,1.168968,109750.0,109740.0,0.02937019]
[1751581223747,1.168968,109750.0,109740.0,0.20155739]
[1751581224053,1.168968,109750.0,109740.0,0.21155739]
[1751581227255,1.168968,109750.0,109740.0,0.45155739]
[1751581227444,1.168968,109750.0,109740.0,0.23155739]
[1751581227649,1.168968,109750.0,109740.0,0.40155739]
[1751581229059,0.92229772,109750.0,109740.0,0.40155739]
[1751581234365,0.92237196,109750.0,109740.0,0.40155739]
[1751581238668,0.92237196,109750.0,109740.0,0.51155739]
[1751581240169,0.56157196,109750.0,109740.0,0.75822767]
[1751581240370,0.49687196,109750.0,109740.0,1.48972767]
[1751581240563,0.49687196,109750.0,109740.0,1.55142767]
[1751581244675,0.49687196,109750.0,109740.0,2.37834767]
[1751581246778,0.03473108,109750.0,109740.0,2.03834767]
[1751581247082,0.01181748,109750.0,109740.0,2.73788588]
[1751581248384,0.44065836,109750.0,109740.0,2.1112156]
[1751581248577,0.44065836,109750.0,109740.0,2.4512156]
[1751581249685,0.44065836,109750.0,109740.0,2.1112156]
[1751581252280,0.44065836,109750.0,109740.0,2.01897748]
[1751581252472,0.44065836,109750.0,109740.0,0.9453872]
[1751581252670,0.47075836,109750.0,109740.0,1.7419272]
[1751581252875,0.53565836,109750.0,109740.0,1.6798272]
[1751581257486,0.53565836,109750.0,109740.0,0.8529872]
[1751581257690,0.53565836,109750.0,109740.0,1.6797872]
[1751581258381,0.53565836,109750.0,109740.0,1.3189872]
[1751581258585,0.89645836,109750.0,109740.0,1.3189872]
[1751581263286,0.89645836,109750.0,109740.0,0.4921872]
[1751581265388,1.14312864,109750.0,109740.0,0.1821872]
[1751581265886,1.14312864,109750.0,109740.0,0.3121872]
[1751581267585,0.1821872,109740.0,109730.0,1.10895557]
[1751581267785,0.77262776,109740.0,109730.0,1.42895557]
[1751581269088,0.77362776,109740.0,109730.0,1.42895557]
[1751581269283,0.77362776,109740.0,109730.0,0.60219557]
[1751581270287,0.78144524,109740.0,109730.0,0.60219557]
[1751581271890,1.14224524,109740.0,109730.0,0.60219557]
[1751581272293,1.21590661,109740.0,109730.0,0.60219557]
[1751581279394,1.23883564,109740.0,109730.0,0.60219557]
[1751581279694,1.23883564,109740.0,109730.0,0.55664487]
[1751581279889,1.23883564,109740.0,109730.0,0.51110507]
[1751581280097,0.74549508,109740.0,109730.0,0.51110507]
[1751581280296,1.23883564,109740.0,109730.0,0.51110507]
[1751581281197,1.21590661,109740.0,109730.0,0.51110507]
[1751581284798,1.23883921,109740.0,109730.0,0.51110507]